Cogmind - Beta 15 @@@ ROGUE MODE // 2025.08.23 @ 03:03:07 Player: Skuld Result: Destroyed by S-10 Pest with Light Assault Rifle Performance ------------- Evolutions (0) 0 Regions Visited (1) 200 Robots Destroyed (8) 40 Value Destroyed (171) 171 Prototype IDs (0) 0 Alien Tech Used (0) 0 Bonus (0) 0 TOTAL SCORE: 411 Bonus ------- None Cogmind --------- Core Integrity 0/250 Matter 185/300 Energy 85/100 System Corruption 0% Temperature Cool (0) Movement Walking (190) Ox1 Location -10/Materials Parts ------- > --- POWER (1) -------- (None) > --- PROPULSION (2) --- Aluminum Leg Aluminum Leg > --- UTILITY (2) ------ Large Storage Unit > --- WEAPON (2) ------- Welding Torch > --- INVENTORY (15) --- Light Ion Engine Wheel Wheel Peak State ------------ > --- POWER ------------ Light Ion Engine > --- PROPULSION ------- Aluminum Leg Aluminum Leg > --- UTILITY ---------- Large Storage Unit Seismic Detector > --- WEAPON ----------- Assault Rifle Assault Rifle > --- INVENTORY -------- Light Ion Engine Wheel Wheel Mining Laser [Rating: 7] Favorites ----------- Power Light Ion Engine Engine Light Ion Engine Propulsion Aluminum Leg Leg Aluminum Leg Wheel Wheel Utility Seismic Detector Device Seismic Detector Storage Large Storage Unit Weapon Assault Rifle Ballistic Gun Assault Rifle Special Weapon Mining Laser Build | -11 -10 ------- Run | Yrd Mat Slots Evolved . | . . Power . | . . Propulsion . | . . Utility . | . . Weapon . | . . Parts Attached 14 | 9 5 Power 2 | 2 . Engine 2 | 2 . Core . | . . Reactor . | . . Propulsion 6 | 4 2 Treads . | . . Leg 4 | 2 2 Wheel 2 | 2 . Hover . | . . Flight . | . . Utility 2 | 1 1 Device 1 | 1 . Storage 1 | . 1 Processor . | . . Hackware . | . . Protection . | . . Artifact . | . . Weapon 4 | 2 2 Energy Gun . | . . Energy Cannon . | . . Ballistic Gun 2 | 2 . Ballistic Cannon . | . . Launcher . | . . Special Weapon 2 | . 2 Impact Weapon . | . . Slashing Weapon . | . . Piercing Weapon . | . . Special Melee Weapon . | . . Unidentified Prototypes . | . . Parts Lost 7 | . 7 Power 1 | . 1 Propulsion 2 | . 2 Utility 1 | . 1 Weapon 3 | . 3 Highest Loss Streak 7 | . 7 To Critical Strikes . | . . Average Backups 3 | 3 3 Power . | . 1 Propulsion 1 | 1 2 Utility . | . . Weapon . | . . Tool/Special . | . . Unused Backups 2 | . 2 Power . | . . Propulsion 2 | . 2 Utility . | . . Weapon . | . . Tool/Special . | . . Average Slot Usage (%) 87 | . 87 Engine 12 | . 12 Leg 27 | . 27 Device 12 | . 12 Storage 6 | . 6 Ballistic Gun 26 | . 26 Peak Build Rating 7 | 6 7 Average Rating 5 | 4 6 On Entrance 3 | . 6 Naked Turns . | . . Heaviest Build 28 | 8 28 Greatest Support 20 | 20 20 Greatest Overweight (x) 2 | 2 1 Average Overweight (x) . | . . Largest Inventory Capacity 15 | 5 15 Average Capacity 6 | 5 9 Most Carried 5 | 5 5 Average Carried 3 | 3 3 Final Capacity 15 | 5 15 Final Carried 4 | 4 3 Class Distribution -------------------- 100% | Mutant Dominant Class ---------------- Mutant | -10/Materials Resources | -11 -10 ----------- Run | Yrd Mat Matter Collected 398 | 322 76 Remotely . | . . Salvage Created 241 | 125 116 Parts 16 | 11 5 Haulers Intercepted . | . . Recyclers Shooed . | . . Parts Field Recycled . | . . Retrieved Matter . | . . Parts Self-Destructed . | . . Prevented . | . . Kills | -11 -10 ------- Run | Yrd Mat Combat Hostiles Destroyed 4 | 1 3 Guns 4 | 1 3 Classes Destroyed 3 | 3 . Worker 1 | 1 . Tunneler 3 | 3 . Grunt 4 | 1 3 Best Kill Streak 4 | 4 3 Combat Bots Only 3 | 1 3 Max Kills in Single Turn 1 | 1 1 Gunslinging . | . . Exploded . | . . Melee . | . . Uniques/NPCs Destroyed . | . . Combat | -11 -10 -------- Run | Yrd Mat Hostile Shots Fired 96 | 4 92 Missed 25 | 1 24 Hits 71 | 3 68 Projectile 71 | 3 68 Critical Strikes 1 | . 1 Damage Taken 810 | 32 778 Core 258 | . 258 Absorbed by Shields . | . . Core Remaining (%) 100 | 100 . Volleys Fired 29 | 13 16 Largest 2 | 2 2 Hottest 40 | 40 40 Shots Fired 56 | 26 30 Gun 56 | 26 30 Cannon . | . . Launcher . | . . Special . | . . Kinetic 56 | 26 30 Thermal . | . . Explosive . | . . Electromagnetic . | . . Robot Hit Streak 6 | 6 6 Robot Miss Streak 4 | 2 4 Penetration Max . | . . Secondary Targets 2 | . 2 Max Gunslinging Chain 1 | . 1 Shots Hit Robots 29 | 14 15 Core Hits 13 | 6 7 Critical Kills . | . . Critical Parts Destroyed . | . . Critical Strikes . | . . Melee Attacks . | . . Impact . | . . Slashing . | . . Piercing . | . . Sneak Attacks . | . . Combat Hostiles . | . . Follow-up Attacks . | . . Damage Inflicted 409 | 172 237 Guns 409 | 172 237 Cannons . | . . Explosions . | . . Melee . | . . Ramming . | . . Kinetic 409 | 172 237 Thermal . | . . Explosive . | . . Electromagnetic . | . . Impact . | . . Slashing . | . . Piercing . | . . Highest Corruption . | . . Average Corruption . | . . Corruption Purged . | . . Corruption Blocked . | . . Overload Shots . | . . Overflow Damage . | . . Projectiles . | . . Explosions . | . . Melee . | . . Knockbacks . | . . Impact . | . . Kinetic . | . . Secondary . | . . Self-Inflicted Damage . | . . Shots . | . . Rammed . | . . Targets Rammed . | . . Kicked . | . . Crushed . | . . Highest Temperature 70 | 6 70 Average Temperature 37 | 6 38 Received Heat Transfer 423 | 18 405 Siege Activations . | . . Martial Activations . | . . Shielding Activations . | . . Robots Disrupted . | . . Combat Hostiles . | . . Robots Corrupted . | . . Combat Hostiles . | . . Parts Fried . | . . Impact Corruptions . | . . Robots Melted . | . . Combat Hostiles . | . . Parts Melted . | . . Heat Transferred . | . . Parts Sabotaged . | . . Parts Stolen . | . . Parts Stripped . | . . Power Chain Reactions . | . . Alert | -11 -10 ------- Run | Yrd Mat Maximum Alert Level . | . . Low Security (%) 100 | 100 100 Level 1 . | . . Level 2 . | . . Level 3 . | . . Level 4 . | . . Level 5 . | . . High Security . | . . Max Security . | . . Peak Influence 62 | 20 62 Initial . | . . Average 1 | . 3 Influence Increases 129 | 41 88 Destroy 0b10 Robot/C 80 | 20 60 Destroy 0b10 Robot/NC 20 | 20 . Destroy Leader 20 | . 20 Successful Hack 7 | . 7 Destroy Structure 2 | 1 1 Influence Decreases 124 | 41 83 Time Decay 64 | 41 23 Lost Part 60 | . 60 Squads Dispatched 1 | . 1 Investigation 1 | . 1 Extermination . | . . Reinforcement . | . . Assault . | . . Garrison . | . . Intercept . | . . Searches Triggered . | . . Construction Impeded . | . . Haulers Reinforced . | . . Active Scanning Responses . | . . Cargo Convoy Interrupts . | . . Stealth | -11 -10 --------- Run | Yrd Mat Distress Signals 1 | . 1 Communications Jammed . | . . Distress Signals . | . . Times Spotted 8 | 1 7 Peak Tracking Total 5 | 1 5 Tactical Retreats . | . . Traps | -11 -10 ------- Run | Yrd Mat Traps Triggered . | . . Indirectly . | . . Trap Hack Attempts . | . . Triggered . | . . Disarmed . | . . Reprogrammed . | . . Reused . | . . Traps Extracted . | . . Installed . | . . Triggered . | . . Machines | -11 -10 ---------- Run | Yrd Mat Machines Disabled . | . . Max in Single Turn . | . . Machines Repaired . | . . Machines Dismantled . | . . Machines Sabotaged . | . . Overloaded Fab Kills . | . . Hacking | -11 -10 --------- Run | Yrd Mat Machines Accessed 2 | . 2 Terminals 2 | . 2 Fabricators . | . . Repair Stations . | . . Recycling Units . | . . Scanalyzers . | . . Garrison Access . | . . Total Hacks 8 | . 8 Successful 3 | . 3 Failed 5 | . 5 Catastrophic 1 | . 1 Database Lockouts . | . . Manual 7 | . 7 Terminals 8 | . 8 Fabricators . | . . Repair Stations . | . . Recycling Units . | . . Scanalyzers . | . . Garrison Access . | . . Terminal Hacks 3 | . 3 Record 1 | . 1 Part Schematic 2 | . 2 Fabricator Hacks . | . . Repair Station Hacks . | . . Recycling Unit Hacks . | . . Scanalyzer . | . . Garrison Access Hacks . | . . Unauthorized Hacks . | . . Terminals . | . . Fabricators . | . . Repair Stations . | . . Recycling Units . | . . Scanalyzers . | . . Garrison Access . | . . Data Cores Recovered . | . . Used . | . . Hacking Detections 2 | . 2 Full Trace Events 1 | . 1 Feedback Events . | . . Feedback Blocked . | . . Robot Schematics Acquired . | . . Robots Built . | . . Authchips . | . . Time . | . . Total Robot Build Rating . | . . Part Schematics Acquired 2 | . 2 Parts Built . | . . Authchips . | . . Time . | . . Total Part Build Rating . | . . Parts Repaired . | . . Time . | . . Parts Recycled . | . . Recycled Matter . | . . Retrieved Matter . | . . Retrieved Components . | . . Parts Scanalyzed . | . . Part Schematics Acquired . | . . Parts Damaged . | . . Bothacking | -11 -10 ------------ Run | Yrd Mat Used RIF Installer . | . . Robots Hacked . | . . Non-combat . | . . Combat . | . . Robot Hacks Applied . | . . Relay Couplers Released . | . . Fabnet Peak Effective % . | . . Robots Rewired . | . . Allies Hacked . | . . Hacks Repelled . | . . Allies | -11 -10 -------- Run | Yrd Mat Total Allies . | . . Largest Group . | . . Highest-Rated Group . | . . Highest-Rated Ally . | . . Total Orders . | . . Ally Attacks . | . . Total Damage . | . . Kills . | . . Allies Corrupted . | . . Allies Melted . | . . Intel | -11 -10 ------- Run | Yrd Mat Active Infowar (turns) 728 | 343 385 Seismic 728 | 343 385 Robot Analysis Total . | . . Derelict Logs Recovered . | . . Drone Launches . | . . Drone Recoveries . | . . Exploration | -11 -10 ------------- Run | Yrd Mat Turns Passed 1633 | 1194 439 Spaces Moved 838 | 575 263 Core 79 | 79 . Treads . | . . Legs 456 | 193 263 Wheels 303 | 303 . Hover . | . . Flight . | . . Fastest Speed 50 | 50 120 Average Speed 109 | 96 140 Slowest Speed 190 | 150 190 Overloaded Moves . | . . Propulsion Burnouts . | . . Robots Hopped . | . . Potential Cave-ins . | . . Cave-ins Triggered . | . . Exploration Rate (%) 22 | 9 35 Regions Visited 1 Branch Regions . Pre-discovered Areas . | . . Known Exits Taken . | . . Unknown Exits Taken 1 | 1 . Scrap Searched . | . . Spaces Dug . | . . Terrain Destroyed . | . . Melee . | . . Projectile . | . . AOE . | . . Terrain Rammed . | . . Walls Destroyed . | . . Machines Disabled . | . . Actions | -11 -10 --------- Run | Yrd Mat Total 1490 | 1188 302 Wait 594 | 579 15 Move 837 | 574 263 Hop . | . . Pick Up 10 | 9 1 Fast Attach 9 | 6 3 Attach 9 | 6 3 Detach 2 | 1 1 Swap . | . . Drop . | . . Fire 29 | 13 16 Melee . | . . Ram . | . . Kick . | . . Crush . | . . Escape Stasis . | . . Rewire . | . . Trap . | . . Miscellaneous . | . . Route ------- -11/Scrapyard -10/Materials (discovered 2 exits: [*Mat x2]) History --------- Turn | Location | Event 2 | -11/Scrapyard | Met Revision 17 66 | -11/Scrapyard | Discovered new exit (range 8) 315 | -11/Scrapyard | Released all parts (5) 1195 | -11/Scrapyard | Entered Materials 1196 | -10/Materials | Build established: Mutant 1344 | -10/Materials | Discovered new exit (range 3) 1556 | -10/Materials | Discovered new exit (range 8) 1594 | -10/Materials | Core integrity fell below 50% 1622 | -10/Materials | Core integrity fell below 20% 1634 | -10/Materials | Destroyed by S-10 Pest with Light Assault Rifle Last Messages --------------- G-34 Mercenary destroyed. Switching to secondary target: G-34 Mercenary. Assault Rifle destroyed. U-05 Engineer builds a Door. W-16 Scout sends out distress signal. Assault Rifle destroyed. K-01 Serf collects debris. Acquired 39 matter. K-01 Serf collects debris. Mining Laser destroyed. Aluminum Leg destroyed. Acquired 37 matter. K-01 Serf collects debris. Aluminum Leg destroyed. Acquired Aluminum Leg. K-01 Serf collects debris. Acquired Aluminum Leg. K-01 Serf collects debris. Acquired Welding Torch. [Achievement: First Step to Greatness] Map ----- +----------------------------------------------------+ | ?????????????????????????# ###+######????????? | | ?????????????????????????# #??????????? | | ?????????????????????????# < #??????????? | | ?????????????????????????# #??????????? | | ?????????????????????????# ###/#######???????? | | ?????????????????????????## ### #???????? | | ??????????????????????????# #?# #???????? | | ??????????????????????????# #?# """ """ #???????? | | ??????????????????????????# #?# """ """ #???????? | | ??????????????????????????# #?# """ """ #???????? | | ??????????????????????????# #?# #???????? | | ??????????????????????????# #?# #???????? | | ??????????????????????????# #?# #???????? | | ??????????????????????????# #?###########???????? | | ?????????#????????????????# #?######????????????? | | ?????????# ???????????????# #?""" #????????????? | | ?????????# ????#######???# # """ #????????????? | | ?????????# #### ##### # """ #????????????? | | ?????????# " #????????????? | | ?????????+ T # #????????????? | | ?????????# # #????????????? | | ???????????###### ##### #?######????????????? | | ????????????????## ###### #???????????????????? | | ??????????? ????#* # # ########????????????? | | ??????????# """ #%kg# # # #????????????? | | ??????????# """ +== s ! @# # """ #????????????? | | ??????????# """ # # # # "R #????????????? | | ??????????? # < # # # """ #????????????? | | ??????????# ?# # " # + #????????????? | | ??????????######?##### T # # [ #????????????? | | ?????????????????????# " # #########???????????? | | ?????????????????????# + #???????????? | | ?????????????????????###### #???????????? | | ????????????????????????### #######???????????? | | ????????????????????????# #?????????????????? | | ????????????????????????#! !#?????????????????? | | ????????????????????????##! !!##?????????????????? | | ?????????????????????????######??????????????????? | | ?????????????????????????????????????????????????? | | | | | | | | | | | | | | | | | | | | | | | +----------------------------------------------------+ Best States ------------- Heat Dissipation 25 Energy Generation 10 Energy Capacity 125 Matter Stores 300 Matter Capacity 300 Sight Range 16 Terrain Scan Density 10 Evasion (%) 55 Item Schematics ----------------- Sensor Array | -10/Materials | Hacked Signal Interpreter | -10/Materials | Hacked Robot Schematics ------------------ None Fabricated ------------ Nothing Repaired ---------- Nothing Alien Tech Used ----------------- None Achievements -------------- First Step to Greatness One Hack Too Far Challenges ------------ None Game ------ Seed SuperdenseGatlingCorpse Manual? 0 Play Time 00:46:07 Cumulative 0.7 hours Start 2025.08.23 @ 02:02:09 End 2025.08.23 @ 03:03:07 Sessions 1 Manual Loads 0 Difficulty Rogue Special Mode None Game No. 1 Rogue 1 Adventurer 0 Explorer 0 Win Type - Total 0 Types 0/0/0/0/0/0/0/0/0/0 Lore% 0 Gallery% 0 Achievement% 0 Wizard Run 0 Options --------- Layout 1 ASCII 0 Keyboard 1 Movement Arrows Keybinds 0 Fullscreen 1 Font 48/CogWide++ Map View 50x35 Zoom Use 0% Tactical HUD 0 Map Filters NONE Filters NONE Steam 0 RUN: bf015932-8f39-47d9-a252-f9fe0772858a